[Event "Early-Titled-Tuesday-Blitz-September-12-2023"]
[Site "Chess.com"]
[Date "2023.09.12"]
[Round "11"]
[White "tteshan"]
[Black "esrosenberg"]
[Result "1/2-1/2"]
[WhiteElo "2524"]
[BlackElo "2363"]
[TimeControl "180+1"]
[EndTime "10:08:52 PDT"]
[Termination "Game drawn by repetition"]

1. e4 {[%clk 0:03:00.9]} 1... c6 {[%clk 0:02:54.2]} 2. d4 {[%clk 0:03:00.7]}
2... d5 {[%clk 0:02:54.9]} 3. Nc3 {[%clk 0:03:01.4]} 3... dxe4 {[%clk 0:02:55]}
4. Nxe4 {[%clk 0:03:02.3]} 4... Bf5 {[%clk 0:02:55]} 5. Ng3 {[%clk 0:03:02.7]}
5... Bg6 {[%clk 0:02:55.8]} 6. h4 {[%clk 0:03:03.4]} 6... h6 {[%clk 0:02:56]} 7.
Nf3 {[%clk 0:03:04.1]} 7... Nd7 {[%clk 0:02:55.6]} 8. Bd3 {[%clk 0:03:04.8]}
8... Bxd3 {[%clk 0:02:54.1]} 9. Qxd3 {[%clk 0:03:05.7]} 9... e6 {[%clk
0:02:54.6]} 10. Bf4 {[%clk 0:03:06]} 10... Ngf6 {[%clk 0:02:53.6]} 11. O-O-O
{[%clk 0:03:05.5]} 11... Be7 {[%clk 0:02:50.5]} 12. Ne4 {[%clk 0:03:04.4]} 12...
Nxe4 {[%clk 0:02:42.9]} 13. Qxe4 {[%clk 0:03:05.3]} 13... Nf6 {[%clk 0:02:43.3]}
14. Qe2 {[%clk 0:03:05.9]} 14... Qd5 {[%clk 0:02:44]} 15. Kb1 {[%clk 0:03:05.2]}
15... Qe4 {[%clk 0:02:44.3]} 16. Qxe4 {[%clk 0:03:04.4]} 16... Nxe4 {[%clk
0:02:44.5]} 17. Be3 {[%clk 0:03:04.6]} 17... a5 {[%clk 0:02:39.4]} 18. Ne5
{[%clk 0:02:58.4]} 18... a4 {[%clk 0:02:38.7]} 19. f3 {[%clk 0:02:41.5]} 19...
Ng3 {[%clk 0:02:31.7]} 20. Rh3 {[%clk 0:02:41.9]} 20... Nf5 {[%clk 0:02:30.9]}
21. Bf2 {[%clk 0:02:42]} 21... a3 {[%clk 0:02:30.6]} 22. b3 {[%clk 0:02:40.5]}
22... Nd6 {[%clk 0:02:07.1]} 23. c4 {[%clk 0:02:35.4]} 23... Bf6 {[%clk
0:02:01.1]} 24. Nd3 {[%clk 0:02:27.4]} 24... b5 {[%clk 0:01:54.8]} 25. cxb5
{[%clk 0:02:09.7]} 25... Nxb5 {[%clk 0:01:55]} 26. Rc1 {[%clk 0:02:06.3]} 26...
Nxd4 {[%clk 0:01:48.3]} 27. Bxd4 {[%clk 0:02:01.5]} 27... Bxd4 {[%clk
0:01:48.5]} 28. Rxc6 {[%clk 0:02:00.9]} 28... O-O {[%clk 0:01:38.6]} 29. Rh1
{[%clk 0:02:00.6]} 29... Rfd8 {[%clk 0:01:35.4]} 30. Kc2 {[%clk 0:01:51.6]}
30... Rac8 {[%clk 0:01:32.5]} 31. Rxc8 {[%clk 0:01:51.2]} 31... Rxc8+ {[%clk
0:01:32.8]} 32. Kd2 {[%clk 0:01:51.7]} 32... Bc3+ {[%clk 0:01:25.8]} 33. Ke3
{[%clk 0:01:49]} 33... Ba5 {[%clk 0:01:23.9]} 34. Rc1 {[%clk 0:01:44.2]} 34...
Rd8 {[%clk 0:01:15.4]} 35. Rc4 {[%clk 0:01:36.5]} 35... Bb6+ {[%clk 0:01:09.4]}
36. Ke2 {[%clk 0:01:36.3]} 36... Bd4 {[%clk 0:01:09.4]} 37. Ra4 {[%clk
0:01:34.5]} 37... Bb2 {[%clk 0:01:09.6]} 38. Rc4 {[%clk 0:01:30.9]} 38... e5
{[%clk 0:01:06.3]} 39. b4 {[%clk 0:01:29.1]} 39... f5 {[%clk 0:00:59.6]} 40. b5
{[%clk 0:01:27.5]} 40... Bd4 {[%clk 0:00:51.3]} 41. Rb4 {[%clk 0:01:03.9]} 41...
e4 {[%clk 0:00:50.4]} 42. fxe4 {[%clk 0:01:02.9]} 42... fxe4 {[%clk 0:00:51.3]}
43. Nc1 {[%clk 0:01:01.7]} 43... Bc3 {[%clk 0:00:34.5]} 44. Rxe4 {[%clk
0:01:00.9]} 44... Rd2+ {[%clk 0:00:35.2]} 45. Kf3 {[%clk 0:00:58.9]} 45... Rb2
{[%clk 0:00:29.8]} 46. Re8+ {[%clk 0:00:39.7]} 46... Kf7 {[%clk 0:00:29.1]} 47.
Rb8 {[%clk 0:00:38.9]} 47... Bd2 {[%clk 0:00:27]} 48. Nb3 {[%clk 0:00:37.3]}
48... Rxa2 {[%clk 0:00:26.6]} 49. b6 {[%clk 0:00:37.2]} 49... Rb2 {[%clk
0:00:20]} 50. Nxd2 {[%clk 0:00:13.9]} 50... Rxd2 {[%clk 0:00:20]} 51. b7 {[%clk
0:00:13.2]} 51... Rb2 {[%clk 0:00:20.5]} 52. Ke4 {[%clk 0:00:11.2]} 52... a2
{[%clk 0:00:20.6]} 53. Ra8 {[%clk 0:00:11.4]} 53... Rxb7 {[%clk 0:00:20.3]} 54.
Rxa2 {[%clk 0:00:11.9]} 54... Rb4+ {[%clk 0:00:20.5]} 55. Kf5 {[%clk 0:00:10.8]}
55... Rxh4 {[%clk 0:00:21.2]} 56. Ra7+ {[%clk 0:00:10.8]} 56... Kg8 {[%clk
0:00:21.8]} 57. g4 {[%clk 0:00:10.1]} 57... Kh7 {[%clk 0:00:20.4]} 58. Rb7
{[%clk 0:00:07.7]} 58... Rh1 {[%clk 0:00:20.1]} 59. Ra7 {[%clk 0:00:08]} 59...
Rf1+ {[%clk 0:00:20.3]} 60. Ke4 {[%clk 0:00:08.6]} 60... Kg6 {[%clk 0:00:20]}
61. Rb7 {[%clk 0:00:06.9]} 61... Rf7 {[%clk 0:00:17.2]} 62. Rb5 {[%clk
0:00:06.7]} 62... Rf6 {[%clk 0:00:16]} 63. Ra5 {[%clk 0:00:06.8]} 63... Rb6
{[%clk 0:00:15.4]} 64. Ra7 {[%clk 0:00:07]} 64... Rb4+ {[%clk 0:00:15.2]} 65.
Kf3 {[%clk 0:00:07.5]} 65... Rb5 {[%clk 0:00:14.5]} 66. Kf4 {[%clk 0:00:07.7]}
66... Rb4+ {[%clk 0:00:14.7]} 67. Kg3 {[%clk 0:00:08.2]} 67... Kf6 {[%clk
0:00:15.3]} 68. Ra6+ {[%clk 0:00:08.2]} 68... Kg5 {[%clk 0:00:14.5]} 69. Ra5+
{[%clk 0:00:08.7]} 69... Kg6 {[%clk 0:00:14.8]} 70. Ra6+ {[%clk 0:00:09.1]}
70... Kh7 {[%clk 0:00:15]} 71. Ra7 {[%clk 0:00:09.7]} 71... Rb6 {[%clk
0:00:14.6]} 72. Rc7 {[%clk 0:00:09.6]} 72... Rb5 {[%clk 0:00:14.2]} 73. Ra7
{[%clk 0:00:10]} 73... Rb6 {[%clk 0:00:13.5]} 74. Rc7 {[%clk 0:00:10.2]} 74...
Kg6 {[%clk 0:00:14.1]} 75. Ra7 {[%clk 0:00:10.3]} 75... Rb5 {[%clk 0:00:13.4]}
76. Rc7 {[%clk 0:00:10]} 76... h5 {[%clk 0:00:13]} 77. gxh5+ {[%clk 0:00:09.1]}
77... Rxh5 {[%clk 0:00:12.2]} 78. Rc6+ {[%clk 0:00:09.7]} 78... Kf7 {[%clk
0:00:12.4]} 79. Kg4 {[%clk 0:00:09.1]} 79... Ra5 {[%clk 0:00:12.2]} 80. Rb6
{[%clk 0:00:09.3]} 80... g6 {[%clk 0:00:11.4]} 81. Rc6 {[%clk 0:00:09.7]} 81...
Kg7 {[%clk 0:00:11.6]} 82. Rb6 {[%clk 0:00:09]} 82... Kh6 {[%clk 0:00:12.1]} 83.
Rb4 {[%clk 0:00:08.8]} 83... Rg5+ {[%clk 0:00:10.7]} 84. Kh4 {[%clk 0:00:08.8]}
84... Rg1 {[%clk 0:00:11]} 85. Rc4 {[%clk 0:00:07.6]} 85... g5+ {[%clk
0:00:09.1]} 86. Kh3 {[%clk 0:00:07.4]} 86... Kh5 {[%clk 0:00:09.5]} 87. Kh2
{[%clk 0:00:07]} 87... Ra1 {[%clk 0:00:08]} 88. Kg2 {[%clk 0:00:07.4]} 88... g4
{[%clk 0:00:07.5]} 89. Rc2 {[%clk 0:00:07.8]} 89... Kh4 {[%clk 0:00:07.3]} 90.
Rd2 {[%clk 0:00:08.1]} 90... Ra3 {[%clk 0:00:06.5]} 91. Rb2 {[%clk 0:00:08.6]}
91... Rg3+ {[%clk 0:00:06.4]} 92. Kh2 {[%clk 0:00:09.1]} 92... Rf3 {[%clk
0:00:05.8]} 93. Kg2 {[%clk 0:00:09.2]} 93... Rc3 {[%clk 0:00:05.7]} 94. Ra2
{[%clk 0:00:09.5]} 94... Rd3 {[%clk 0:00:04.1]} 95. Rb2 {[%clk 0:00:09.9]} 95...
Rh3 {[%clk 0:00:03.5]} 96. Ra2 {[%clk 0:00:10.2]} 96... Rg3+ {[%clk 0:00:03.7]}
97. Kh2 {[%clk 0:00:09.9]} 97... Rb3 {[%clk 0:00:03.6]} 98. Kg2 {[%clk
0:00:10.3]} 98... Rb4 {[%clk 0:00:03.5]} 99. Rc2 {[%clk 0:00:09.9]} 99... g3
{[%clk 0:00:03]} 100. Ra2 {[%clk 0:00:09.2]} 100... Kg4 {[%clk 0:00:03.3]} 101.
Rc2 {[%clk 0:00:09.3]} 101... Rf4 {[%clk 0:00:03.9]} 102. Ra2 {[%clk 0:00:09.1]}
102... Re4 {[%clk 0:00:04.3]} 103. Rc2 {[%clk 0:00:09.1]} 103... Rd4 {[%clk
0:00:04.9]} 104. Rb2 {[%clk 0:00:09.4]} 104... Ra4 {[%clk 0:00:04.9]} 105. Rc2
{[%clk 0:00:09.7]} 105... Rb4 {[%clk 0:00:05.3]} 106. Ra2 {[%clk 0:00:09.8]}
106... Rc4 {[%clk 0:00:05.6]} 107. Re2 {[%clk 0:00:10]} 107... Rd4 {[%clk
0:00:05.7]} 108. Ra2 {[%clk 0:00:10.1]} 108... Re4 {[%clk 0:00:06]} 109. Rb2
{[%clk 0:00:10.4]} 109... Ra4 {[%clk 0:00:06.1]} 110. Rc2 {[%clk 0:00:10.9]}
110... Rd4 {[%clk 0:00:05.7]} 111. Rb2 {[%clk 0:00:11.3]} 111... Rc4 {[%clk
0:00:06.2]} 112. Ra2 {[%clk 0:00:11.6]} 112... Rb4 {[%clk 0:00:06.5]} 113. Rc2
{[%clk 0:00:11.6]} 113... Ra4 {[%clk 0:00:06.5]} 114. Rb2 {[%clk 0:00:11.9]}
114... Rc4 {[%clk 0:00:06.7]} 115. Ra2 {[%clk 0:00:12.3]} 115... Rb4 {[%clk
0:00:07.1]} 1/2-1/2